[Event "Titled Tuesday Blitz January 17 Late 2023"]
[White "Abdrlauf, Elham"]
[Black "Dominguez Perez, Leinier"]
[WhiteFideId "1533533"]
[BlackFideId "3503240"]
[WhiteElo "2518"]
[BlackElo "2739"]
[Result "1-0"]
[Round "05"]
[TimeControl "180+2"]
[Date "2023.01.17"]
[WhiteClock "0:00:04"]
[BlackClock "0:00:04"]

1. e4 {[%clk 0:03:00]}  Nf6 {[%clk 0:02:07]} 2. e5 {[%clk 0:03:00]}  Nd5 {[%clk 0:02:07]} 3. c4 {[%clk 0:03:00]}  Nb6 {[%clk 0:02:07]} 4. d4 {[%clk 0:03:00]}  d6 {[%clk 0:02:08]} 5. exd6 {[%clk 0:03:01]}  exd6 {[%clk 0:02:07]} 6. Nf3 {[%clk 0:03:01]}  Be7 {[%clk 0:02:04]} 7. h3 {[%clk 0:03:02]}  O-O {[%clk 0:02:03]} 8. Nc3 {[%clk 0:03:02]}  Bf6 {[%clk 0:02:03]} 9. Be2 {[%clk 0:03:01]}  Be6 {[%clk 0:02:03]} 10. d5 {[%clk 0:02:59]}  Bxc3+ {[%clk 0:02:03]} 11. bxc3 {[%clk 0:02:59]}  Bd7 {[%clk 0:02:03]} 12. O-O {[%clk 0:02:56]}  Na6 {[%clk 0:02:03]} 13. Nd4 {[%clk 0:02:51]}  Nc5 {[%clk 0:01:58]} 14. Nb3 {[%clk 0:02:47]}  Nba4 {[%clk 0:01:54]} 15. Qc2 {[%clk 0:02:23]}  Qf6 {[%clk 0:01:48]} 16. Nd4 {[%clk 0:02:23]}  Rfe8 {[%clk 0:01:44]} 17. Be3 {[%clk 0:02:12]}  Qg6 {[%clk 0:01:39]} 18. Rfc1 {[%clk 0:02:05]}  Ne4 {[%clk 0:01:24]} 19. Bg4 {[%clk 0:01:20]}  Bxg4 {[%clk 0:01:19]} 20. hxg4 {[%clk 0:01:21]}  Nac5 {[%clk 0:01:11]} 21. Nb5 {[%clk 0:01:06]}  Re7 {[%clk 0:01:08]} 22. Re1 {[%clk 0:00:53]}  a6 {[%clk 0:01:00]} 23. Bxc5 {[%clk 0:00:45]}  axb5 {[%clk 0:00:48]} 24. Bd4 {[%clk 0:00:45]}  Rae8 {[%clk 0:00:39]} 25. cxb5 {[%clk 0:00:40]}  Nf6 {[%clk 0:00:31]} 26. Qd2 {[%clk 0:00:32]}  Nxg4 {[%clk 0:00:22]} 27. Rxe7 {[%clk 0:00:20]}  Rxe7 {[%clk 0:00:23]} 28. Re1 {[%clk 0:00:20]}  Rxe1+ {[%clk 0:00:15]} 29. Qxe1 {[%clk 0:00:21]}  h5 {[%clk 0:00:15]} 30. f3 {[%clk 0:00:20]}  Nh6 {[%clk 0:00:15]} 31. a4 {[%clk 0:00:17]}  Qd3 {[%clk 0:00:05]} 32. Qe8+ {[%clk 0:00:16]}  Kh7 {[%clk 0:00:05]} 33. Qe4+ {[%clk 0:00:17]}  Qxe4 {[%clk 0:00:05]} 34. fxe4 {[%clk 0:00:17]}  b6 {[%clk 0:00:06]} 35. e5 {[%clk 0:00:14]}  Nf5 {[%clk 0:00:05]} 36. exd6 {[%clk 0:00:12]}  Nxd6 {[%clk 0:00:05]} 37. Be5 {[%clk 0:00:12]}  Ne8 {[%clk 0:00:04]} 38. c4 {[%clk 0:00:11]}  f6 {[%clk 0:00:05]} 39. Bg3 {[%clk 0:00:05]}  Kg8 {[%clk 0:00:04]} 40. c5 {[%clk 0:00:05]}  Kf7 {[%clk 0:00:04]} 41. Bxc7 {[%clk 0:00:05]}  Nxc7 {[%clk 0:00:04]} 42. cxb6 {[%clk 0:00:04]} 1-0


[Site "https://www.chess.com"]

[Event "Titled Tuesday Blitz January 17 Late 2023"]
[White "Holt, Conrad"]
[Black "Esipenko, Andrey"]
[WhiteFideId "2034387"]
[BlackFideId "24175439"]
[WhiteElo "2540"]
[BlackElo "2679"]
[Result "0-1"]
[Round "05"]
[TimeControl "180+2"]
[Date "2023.01.17"]
[WhiteClock "0:00:05"]
[BlackClock "0:00:05"]

1. d4 {[%clk 0:03:00]}  d5 {[%clk 0:02:58]} 2. c4 {[%clk 0:03:01]}  e6 {[%clk 0:02:58]} 3. Nc3 {[%clk 0:03:00]}  c5 {[%clk 0:02:58]} 4. cxd5 {[%clk 0:02:59]}  exd5 {[%clk 0:02:55]} 5. Nf3 {[%clk 0:02:59]}  Nf6 {[%clk 0:02:54]} 6. Bg5 {[%clk 0:02:57]}  Be6 {[%clk 0:02:53]} 7. g3 {[%clk 0:02:45]}  Nc6 {[%clk 0:02:47]} 8. Bg2 {[%clk 0:02:45]}  h6 {[%clk 0:02:40]} 9. Be3 {[%clk 0:02:35]}  c4 {[%clk 0:02:34]} 10. Ne5 {[%clk 0:02:35]}  Bb4 {[%clk 0:02:30]} 11. O-O {[%clk 0:02:32]}  O-O {[%clk 0:02:30]} 12. Qa4 {[%clk 0:02:14]}  Qe7 {[%clk 0:01:53]} 13. Nxc6 {[%clk 0:02:05]}  bxc6 {[%clk 0:01:53]} 14. Qxc6 {[%clk 0:02:05]}  Rfc8 {[%clk 0:01:47]} 15. Qa4 {[%clk 0:02:02]}  Rab8 {[%clk 0:01:43]} 16. Qc2 {[%clk 0:02:00]}  Bd6 {[%clk 0:01:39]} 17. Rad1 {[%clk 0:01:54]}  Qd7 {[%clk 0:01:37]} 18. Qc1 {[%clk 0:01:34]}  Bh3 {[%clk 0:01:32]} 19. Rfe1 {[%clk 0:01:24]}  Bxg2 {[%clk 0:01:23]} 20. Kxg2 {[%clk 0:01:24]}  Qe6 {[%clk 0:01:00]} 21. Qc2 {[%clk 0:01:20]}  h5 {[%clk 0:00:54]} 22. Bg5 {[%clk 0:01:19]}  Nh7 {[%clk 0:00:54]} 23. Bc1 {[%clk 0:01:17]}  f5 {[%clk 0:00:50]} 24. f3 {[%clk 0:01:04]}  h4 {[%clk 0:00:50]} 25. e4 {[%clk 0:01:04]}  fxe4 {[%clk 0:00:49]} 26. fxe4 {[%clk 0:01:03]}  h3+ {[%clk 0:00:15]} 27. Kg1 {[%clk 0:01:02]}  Bb4 {[%clk 0:00:12]} 28. exd5 {[%clk 0:00:59]}  Qd7 {[%clk 0:00:13]} 29. Qg6 {[%clk 0:00:48]}  Rb6 {[%clk 0:00:12]} 30. Qc2 {[%clk 0:00:28]}  Bxc3 {[%clk 0:00:10]} 31. bxc3 {[%clk 0:00:26]}  Nf6 {[%clk 0:00:11]} 32. Re5 {[%clk 0:00:19]}  Nxd5 {[%clk 0:00:09]} 33. Rf1 {[%clk 0:00:18]}  Rf6 {[%clk 0:00:09]} 34. Rxf6 {[%clk 0:00:15]}  Nxf6 {[%clk 0:00:10]} 35. Bg5 {[%clk 0:00:12]}  Ng4 {[%clk 0:00:06]} 36. Re2 {[%clk 0:00:10]}  Qb7 {[%clk 0:00:05]} 37. Qe4 {[%clk 0:00:09]}  Qd7 {[%clk 0:00:02]} 38. d5 {[%clk 0:00:08]}  Rf8 {[%clk 0:00:01]} 39. Qe6+ {[%clk 0:00:07]}  Qxe6 {[%clk 0:00:02]} 40. dxe6 {[%clk 0:00:08]}  Rb8 {[%clk 0:00:03]} 41. Re1 {[%clk 0:00:06]}  Kf8 {[%clk 0:00:03]} 42. Bf4 {[%clk 0:00:05]}  Rb6 {[%clk 0:00:03]} 43. Bc7 {[%clk 0:00:04]}  Rc6 {[%clk 0:00:03]} 44. Ba5 {[%clk 0:00:04]}  Ke8 {[%clk 0:00:01]} 45. Bb4 {[%clk 0:00:05]}  Nf6 {[%clk 0:00:01]} 46. Re5 {[%clk 0:00:04]}  Ra6 {[%clk 0:00:01]} 47. a3 {[%clk 0:00:04]}  Rc6 {[%clk 0:00:01]} 48. Kf1 {[%clk 0:00:05]}  a6 {[%clk 0:00:02]} 49. Ke2 {[%clk 0:00:05]}  Ng4 {[%clk 0:00:03]} 50. Rh5 {[%clk 0:00:05]}  Rxe6+ {[%clk 0:00:03]} 51. Kd2 {[%clk 0:00:05]}  Nxh2 {[%clk 0:00:03]} 52. Rxh3 {[%clk 0:00:05]}  Nf3+ {[%clk 0:00:03]} 53. Kc2 {[%clk 0:00:05]}  Ne5 {[%clk 0:00:04]} 54. Rh8+ {[%clk 0:00:04]}  Kf7 {[%clk 0:00:04]} 55. Ra8 {[%clk 0:00:05]}  Kf6 {[%clk 0:00:04]} 56. Bc5 {[%clk 0:00:05]}  Kf5 {[%clk 0:00:05]} 57. Bd4 {[%clk 0:00:05]}  g5 {[%clk 0:00:05]} 58. Rg8 {[%clk 0:00:05]}  Nf3 {[%clk 0:00:05]} 59. Ba7 {[%clk 0:00:02]}  Kg4 {[%clk 0:00:06]} 60. Bb8 {[%clk 0:00:02]}  Re2+ {[%clk 0:00:06]} 61. Kc1 {[%clk 0:00:02]}  Ra2 {[%clk 0:00:06]} 62. Bd6 {[%clk 0:00:02]}  Ne1 {[%clk 0:00:06]} 63. Rc8 {[%clk 0:00:01]}  Nd3+ {[%clk 0:00:06]} 64. Kb1 {[%clk 0:00:02]}  Rb2+ {[%clk 0:00:06]} 65. Ka1 {[%clk 0:00:02]}  Rb6 {[%clk 0:00:06]} 66. Rxc4+ {[%clk 0:00:03]}  Kf3 {[%clk 0:00:06]} 67. Bc7 {[%clk 0:00:03]}  Rb7 {[%clk 0:00:06]} 68. a4 {[%clk 0:00:03]}  Ke3 {[%clk 0:00:06]} 69. a5 {[%clk 0:00:03]}  Rb5 {[%clk 0:00:06]} 70. Bb6+ {[%clk 0:00:03]}  Kd2 {[%clk 0:00:07]} 71. Rc7 {[%clk 0:00:03]}  Kc2 {[%clk 0:00:07]} 72. Ka2 {[%clk 0:00:04]}  Nc1+ {[%clk 0:00:04]} 73. Ka3 {[%clk 0:00:04]}  Rb3+ {[%clk 0:00:04]} 74. Ka4 {[%clk 0:00:05]}  Nd3 {[%clk 0:00:05]} 0-1


[Site "https://www.chess.com"]

[Event "Titled Tuesday Blitz January 17 Late 2023"]
[White "Bortnyk, Mykola"]
[Black "Riehle, Marco"]
[WhiteFideId "14120836"]
[BlackFideId "12904392"]
[WhiteElo "2425"]
[BlackElo "2368"]
[Result "1-0"]
[Round "05"]
[TimeControl "180+2"]
[Date "2023.01.17"]
[WhiteClock "0:00:06"]
[BlackClock "0:00:11"]

1. e4 {[%clk 0:03:00]}  e5 {[%clk 0:02:58]} 2. Nf3 {[%clk 0:03:00]}  Nf6 {[%clk 0:02:58]} 3. Nxe5 {[%clk 0:02:57]}  Nxe4 {[%clk 0:02:58]} 4. Qe2 {[%clk 0:02:54]}  Qe7 {[%clk 0:02:57]} 5. Qxe4 {[%clk 0:02:53]}  d6 {[%clk 0:02:57]} 6. d4 {[%clk 0:02:46]}  dxe5 {[%clk 0:02:57]} 7. dxe5 {[%clk 0:02:45]}  Nc6 {[%clk 0:02:56]} 8. Nc3 {[%clk 0:02:43]}  Qxe5 {[%clk 0:02:56]} 9. Qxe5+ {[%clk 0:02:42]}  Nxe5 {[%clk 0:02:57]} 10. Nb5 {[%clk 0:02:30]}  Bb4+ {[%clk 0:02:52]} 11. c3 {[%clk 0:02:21]}  Ba5 {[%clk 0:02:52]} 12. Bf4 {[%clk 0:02:20]}  f6 {[%clk 0:02:51]} 13. O-O-O {[%clk 0:02:16]}  Bd7 {[%clk 0:02:50]} 14. Be2 {[%clk 0:02:08]}  Bb6 {[%clk 0:02:40]} 15. Nd4 {[%clk 0:01:48]}  O-O-O {[%clk 0:02:37]} 16. Bg3 {[%clk 0:01:47]}  Rhe8 {[%clk 0:02:31]} 17. Rhe1 {[%clk 0:01:46]}  a6 {[%clk 0:02:25]} 18. h3 {[%clk 0:01:45]}  Nc6 {[%clk 0:02:15]} 19. Nxc6 {[%clk 0:01:32]}  Bxc6 {[%clk 0:02:16]} 20. Bg4+ {[%clk 0:01:32]}  Kb8 {[%clk 0:02:16]} 21. Rxd8+ {[%clk 0:01:32]}  Rxd8 {[%clk 0:02:16]} 22. Re7 {[%clk 0:01:33]}  g6 {[%clk 0:02:11]} 23. Rxh7 {[%clk 0:01:21]}  Bxg2 {[%clk 0:02:08]} 24. h4 {[%clk 0:01:14]}  f5 {[%clk 0:01:59]} 25. Bd1 {[%clk 0:01:12]}  Rf8 {[%clk 0:01:54]} 26. Bf4 {[%clk 0:01:07]}  Bh3 {[%clk 0:01:45]} 27. f3 {[%clk 0:01:06]}  Rf6 {[%clk 0:01:35]} 28. a4 {[%clk 0:01:02]}  Re6 {[%clk 0:01:28]} 29. Kc2 {[%clk 0:00:53]}  Bf1 {[%clk 0:01:26]} 30. b4 {[%clk 0:00:52]}  a5 {[%clk 0:01:26]} 31. Kb2 {[%clk 0:00:47]}  axb4 {[%clk 0:01:15]} 32. cxb4 {[%clk 0:00:47]}  Bd4+ {[%clk 0:01:16]} 33. Kc1 {[%clk 0:00:37]}  Be3+ {[%clk 0:01:08]} 34. Bxe3 {[%clk 0:00:37]}  Rxe3 {[%clk 0:01:08]} 35. Rg7 {[%clk 0:00:36]}  Re6 {[%clk 0:01:08]} 36. Bb3 {[%clk 0:00:35]}  Rd6 {[%clk 0:01:04]} 37. Bf7 {[%clk 0:00:34]}  Rd3 {[%clk 0:01:00]} 38. Rxg6 {[%clk 0:00:28]}  Rxf3 {[%clk 0:00:59]} 39. h5 {[%clk 0:00:28]}  Rh3 {[%clk 0:00:58]} 40. h6 {[%clk 0:00:28]}  Bd3 {[%clk 0:00:53]} 41. Rf6 {[%clk 0:00:23]}  f4 {[%clk 0:00:52]} 42. Kd2 {[%clk 0:00:22]}  Bb1 {[%clk 0:00:51]} 43. Be6 {[%clk 0:00:20]}  Rh2+ {[%clk 0:00:49]} 44. Kc3 {[%clk 0:00:20]}  f3 {[%clk 0:00:48]} 45. a5 {[%clk 0:00:19]}  f2 {[%clk 0:00:46]} 46. Bc4 {[%clk 0:00:19]}  c6 {[%clk 0:00:43]} 47. Kd4 {[%clk 0:00:16]}  Rh4+ {[%clk 0:00:37]} 48. Kc5 {[%clk 0:00:16]}  Ka7 {[%clk 0:00:33]} 49. Be2 {[%clk 0:00:15]}  Be4 {[%clk 0:00:30]} 50. Kd6 {[%clk 0:00:08]}  Rh1 {[%clk 0:00:26]} 51. Ke5 {[%clk 0:00:07]}  Bd5 {[%clk 0:00:22]} 52. Kd4 {[%clk 0:00:08]}  Bb3 {[%clk 0:00:22]} 53. Ke3 {[%clk 0:00:08]}  Rh2 {[%clk 0:00:22]} 54. Bd3 {[%clk 0:00:06]}  Bg8 {[%clk 0:00:18]} 55. Rf8 {[%clk 0:00:06]}  Rxh6 {[%clk 0:00:13]} 56. Kxf2 {[%clk 0:00:05]}  Bd5 {[%clk 0:00:12]} 57. Rf4 {[%clk 0:00:04]}  Rh3 {[%clk 0:00:12]} 58. Ke2 {[%clk 0:00:04]}  Rh2+ {[%clk 0:00:12]} 59. Ke3 {[%clk 0:00:04]}  Rh3+ {[%clk 0:00:12]} 60. Kd4 {[%clk 0:00:04]}  Rf3 {[%clk 0:00:13]} 61. Rh4 {[%clk 0:00:04]}  Rf8 {[%clk 0:00:13]} 62. Kc5 {[%clk 0:00:04]}  Rd8 {[%clk 0:00:14]} 63. b5 {[%clk 0:00:04]}  cxb5 {[%clk 0:00:14]} 64. Rd4 {[%clk 0:00:03]}  Ka6 {[%clk 0:00:11]} 65. Bxb5+ {[%clk 0:00:02]}  Ka7 {[%clk 0:00:12]} 66. Rxd5 {[%clk 0:00:02]}  Rc8+ {[%clk 0:00:10]} 67. Kb4 {[%clk 0:00:03]}  Rh8 {[%clk 0:00:10]} 68. Rd7 {[%clk 0:00:04]}  Rh4+ {[%clk 0:00:10]} 69. Bc4 {[%clk 0:00:04]}  Kb8 {[%clk 0:00:10]} 70. Kb5 {[%clk 0:00:04]}  Rh5+ {[%clk 0:00:10]} 71. Bd5 {[%clk 0:00:05]}  Ka8 {[%clk 0:00:10]} 72. Rd6 {[%clk 0:00:03]}  Ka7 {[%clk 0:00:10]} 73. Rd7 {[%clk 0:00:04]}  Ka8 {[%clk 0:00:10]} 74. a6 {[%clk 0:00:05]}  Ka7 {[%clk 0:00:06]} 75. Rxb7+ {[%clk 0:00:04]}  Ka8 {[%clk 0:00:07]} 76. Rd7+ {[%clk 0:00:04]}  Kb8 {[%clk 0:00:08]} 77. a7+ {[%clk 0:00:04]}  Kc8 {[%clk 0:00:09]} 78. a8=Q+ {[%clk 0:00:05]}  Kxd7 {[%clk 0:00:10]} 79. Qc6+ {[%clk 0:00:05]}  Ke7 {[%clk 0:00:10]} 80. Qe6+ {[%clk 0:00:05]}  Kd8 {[%clk 0:00:11]} 81. Qg8+ {[%clk 0:00:06]} 1-0


[Site "https://www.chess.com"]

[Event "Titled Tuesday Blitz January 17 Late 2023"]
[White "Oparin, Grigoriy"]
[Black "Artemiev, Vladislav"]
[WhiteFideId "24125890"]
[BlackFideId "24101605"]
[WhiteElo "2667"]
[BlackElo "2701"]
[Result "0-1"]
[Round "05"]
[TimeControl "180+2"]
[Date "2023.01.17"]
[WhiteClock "0:00:12"]
[BlackClock "0:00:05"]

1. e4 {[%clk 0:03:00]}  c5 {[%clk 0:02:57]} 2. Nf3 {[%clk 0:03:00]}  d6 {[%clk 0:02:58]} 3. Nc3 {[%clk 0:03:01]}  a6 {[%clk 0:02:58]} 4. d4 {[%clk 0:03:00]}  cxd4 {[%clk 0:02:57]} 5. Nxd4 {[%clk 0:03:01]}  Nf6 {[%clk 0:02:58]} 6. a4 {[%clk 0:03:01]}  g6 {[%clk 0:02:54]} 7. g3 {[%clk 0:03:01]}  Bg7 {[%clk 0:02:52]} 8. Bg2 {[%clk 0:03:02]}  O-O {[%clk 0:02:52]} 9. h3 {[%clk 0:03:02]}  Nc6 {[%clk 0:02:49]} 10. Be3 {[%clk 0:03:01]}  Bd7 {[%clk 0:02:30]} 11. O-O {[%clk 0:03:01]}  Qc8 {[%clk 0:01:47]} 12. Kh2 {[%clk 0:02:37]}  Rb8 {[%clk 0:01:45]} 13. a5 {[%clk 0:02:32]}  Re8 {[%clk 0:01:03]} 14. Nde2 {[%clk 0:01:32]}  Ne5 {[%clk 0:00:58]} 15. Bd4 {[%clk 0:01:21]}  Bc6 {[%clk 0:00:33]} 16. Nd5 {[%clk 0:00:57]}  Bb5 {[%clk 0:00:24]} 17. Nb6 {[%clk 0:00:44]}  Qd8 {[%clk 0:00:19]} 18. b3 {[%clk 0:00:41]}  Bxe2 {[%clk 0:00:12]} 19. Qxe2 {[%clk 0:00:42]}  Nc6 {[%clk 0:00:11]} 20. Be3 {[%clk 0:00:35]}  Nd7 {[%clk 0:00:11]} 21. Ra4 {[%clk 0:00:23]}  e6 {[%clk 0:00:09]} 22. Rd1 {[%clk 0:00:21]}  Qe7 {[%clk 0:00:08]} 23. Nxd7 {[%clk 0:00:19]}  Qxd7 {[%clk 0:00:09]} 24. c4 {[%clk 0:00:19]}  Qe7 {[%clk 0:00:05]} 25. Ra2 {[%clk 0:00:19]}  Red8 {[%clk 0:00:05]} 26. Bb6 {[%clk 0:00:19]}  Rd7 {[%clk 0:00:05]} 27. Qe3 {[%clk 0:00:18]}  h5 {[%clk 0:00:05]} 28. h4 {[%clk 0:00:18]}  Kh7 {[%clk 0:00:06]} 29. Rad2 {[%clk 0:00:17]}  Bh6 {[%clk 0:00:06]} 30. f4 {[%clk 0:00:17]}  e5 {[%clk 0:00:07]} 31. c5 {[%clk 0:00:16]}  exf4 {[%clk 0:00:07]} 32. gxf4 {[%clk 0:00:16]}  Qxh4+ {[%clk 0:00:07]} 33. Kg1 {[%clk 0:00:15]}  Bxf4 {[%clk 0:00:07]} 34. Qh3 {[%clk 0:00:14]}  Qxh3 {[%clk 0:00:06]} 35. Bxh3 {[%clk 0:00:15]}  Bxd2 {[%clk 0:00:06]} 36. Rxd2 {[%clk 0:00:14]}  Re7 {[%clk 0:00:06]} 37. cxd6 {[%clk 0:00:14]}  Rxe4 {[%clk 0:00:06]} 38. d7 {[%clk 0:00:15]}  Rb4 {[%clk 0:00:05]} 39. d8=Q {[%clk 0:00:11]}  Nxd8 {[%clk 0:00:06]} 40. Bxd8 {[%clk 0:00:12]}  Rxb3 {[%clk 0:00:06]} 41. Rd7 {[%clk 0:00:12]}  Rxh3 {[%clk 0:00:05]} 42. Bc7 {[%clk 0:00:11]}  Rf8 {[%clk 0:00:04]} 43. Bd6 {[%clk 0:00:11]}  Kg8 {[%clk 0:00:05]} 44. Bxf8 {[%clk 0:00:11]}  Kxf8 {[%clk 0:00:05]} 45. Rxb7 {[%clk 0:00:11]}  Ra3 {[%clk 0:00:05]} 46. Rb6 {[%clk 0:00:12]}  Rxa5 {[%clk 0:00:05]} 0-1


[Site "https://www.chess.com"]

[Event "Titled Tuesday Blitz January 17 Late 2023"]
[White "Sarana, Alexey"]
[Black "Iliaguev, Nisim"]
[WhiteFideId "24133795"]
[BlackFideId "2817276"]
[WhiteElo "2685"]
[BlackElo "2402"]
[Result "1-0"]
[Round "05"]
[TimeControl "180+2"]
[Date "2023.01.17"]
[WhiteClock "0:00:22"]
[BlackClock "0:00:09"]

1. c4 {[%clk 0:02:57]}  c5 {[%clk 0:02:59]} 2. Nf3 {[%clk 0:02:57]}  g6 {[%clk 0:02:59]} 3. d4 {[%clk 0:02:57]}  cxd4 {[%clk 0:02:59]} 4. Nxd4 {[%clk 0:02:58]}  Bg7 {[%clk 0:02:59]} 5. e4 {[%clk 0:02:56]}  Nc6 {[%clk 0:03:00]} 6. Be3 {[%clk 0:02:56]}  d6 {[%clk 0:03:00]} 7. Nc3 {[%clk 0:02:56]}  Nf6 {[%clk 0:03:00]} 8. Be2 {[%clk 0:02:57]}  O-O {[%clk 0:03:01]} 9. O-O {[%clk 0:02:57]}  Nxd4 {[%clk 0:03:01]} 10. Bxd4 {[%clk 0:02:58]}  Be6 {[%clk 0:03:01]} 11. b3 {[%clk 0:02:51]}  a6 {[%clk 0:02:59]} 12. Qd3 {[%clk 0:02:50]}  Qa5 {[%clk 0:02:56]} 13. f4 {[%clk 0:02:50]}  b5 {[%clk 0:02:53]} 14. cxb5 {[%clk 0:02:48]}  axb5 {[%clk 0:02:54]} 15. Nxb5 {[%clk 0:02:47]}  Bd7 {[%clk 0:02:44]} 16. Nc3 {[%clk 0:02:43]}  e5 {[%clk 0:02:41]} 17. Be3 {[%clk 0:02:29]}  Ng4 {[%clk 0:02:32]} 18. Bxg4 {[%clk 0:02:26]}  Bxg4 {[%clk 0:02:33]} 19. Nd5 {[%clk 0:02:14]}  exf4 {[%clk 0:02:24]} 20. Bd4 {[%clk 0:02:14]}  f3 {[%clk 0:01:41]} 21. Bxg7 {[%clk 0:02:02]}  Kxg7 {[%clk 0:01:41]} 22. Qd4+ {[%clk 0:02:01]}  f6 {[%clk 0:01:40]} 23. gxf3 {[%clk 0:01:54]}  Be6 {[%clk 0:01:38]} 24. Nf4 {[%clk 0:01:45]}  Qg5+ {[%clk 0:01:31]} 25. Ng2 {[%clk 0:01:46]}  Bh3 {[%clk 0:01:29]} 26. Rf2 {[%clk 0:01:46]}  Rad8 {[%clk 0:01:09]} 27. Qe3 {[%clk 0:01:40]}  Qe5 {[%clk 0:01:08]} 28. Rd1 {[%clk 0:01:37]}  Bxg2 {[%clk 0:01:04]} 29. Kxg2 {[%clk 0:01:33]}  d5 {[%clk 0:01:05]} 30. Rfd2 {[%clk 0:01:25]}  Rfe8 {[%clk 0:00:52]} 31. h4 {[%clk 0:01:13]}  h5 {[%clk 0:00:50]} 32. a4 {[%clk 0:01:09]}  Rd7 {[%clk 0:00:41]} 33. Qd4 {[%clk 0:00:56]}  Qf4 {[%clk 0:00:20]} 34. exd5 {[%clk 0:00:52]}  Qf5 {[%clk 0:00:21]} 35. b4 {[%clk 0:00:48]}  Re5 {[%clk 0:00:21]} 36. a5 {[%clk 0:00:39]}  g5 {[%clk 0:00:17]} 37. a6 {[%clk 0:00:36]}  g4 {[%clk 0:00:13]} 38. fxg4 {[%clk 0:00:29]}  hxg4 {[%clk 0:00:13]} 39. Rf1 {[%clk 0:00:28]}  Qh5 {[%clk 0:00:12]} 40. Qf4 {[%clk 0:00:20]}  Qxh4 {[%clk 0:00:11]} 41. Rh1 {[%clk 0:00:20]}  Qg5 {[%clk 0:00:09]} 42. Qxg5+ {[%clk 0:00:21]}  Rxg5 {[%clk 0:00:09]} 43. b5 {[%clk 0:00:21]}  f5 {[%clk 0:00:07]} 44. b6 {[%clk 0:00:21]}  f4 {[%clk 0:00:08]} 45. b7 {[%clk 0:00:22]}  f3+ {[%clk 0:00:09]} 46. Kg3 {[%clk 0:00:22]} 1-0


[Site "https://www.chess.com"]

[Event "Titled Tuesday Blitz January 17 Late 2023"]
[White "Manukyan, Sargis A."]
[Black "Martinez Alcantara, Jose Eduardo"]
[WhiteFideId "13303970"]
[BlackFideId "3805662"]
[WhiteElo "2158"]
[BlackElo "2619"]
[Result "1/2-1/2"]
[Round "05"]
[TimeControl "180+2"]
[Date "2023.01.17"]
[WhiteClock "0:00:03"]
[BlackClock "0:00:18"]

1. d4 {[%clk 0:02:56]}  Nf6 {[%clk 0:02:59]} 2. c4 {[%clk 0:02:52]}  e6 {[%clk 0:02:59]} 3. Nc3 {[%clk 0:02:51]}  Bb4 {[%clk 0:03:00]} 4. a3 {[%clk 0:02:49]}  Bxc3+ {[%clk 0:03:00]} 5. bxc3 {[%clk 0:02:50]}  d6 {[%clk 0:02:57]} 6. e3 {[%clk 0:02:49]}  Nc6 {[%clk 0:02:57]} 7. Bd3 {[%clk 0:02:49]}  e5 {[%clk 0:02:57]} 8. Ne2 {[%clk 0:02:47]}  O-O {[%clk 0:02:57]} 9. O-O {[%clk 0:02:47]}  e4 {[%clk 0:02:51]} 10. Bb1 {[%clk 0:02:46]}  Na5 {[%clk 0:02:52]} 11. Ng3 {[%clk 0:02:40]}  Re8 {[%clk 0:02:50]} 12. f3 {[%clk 0:02:35]}  exf3 {[%clk 0:02:41]} 13. Qxf3 {[%clk 0:02:17]}  Nxc4 {[%clk 0:02:41]} 14. e4 {[%clk 0:02:15]}  h6 {[%clk 0:02:29]} 15. Bd3 {[%clk 0:01:27]}  Bg4 {[%clk 0:02:06]} 16. Qf2 {[%clk 0:01:11]}  b5 {[%clk 0:01:59]} 17. h3 {[%clk 0:01:08]}  Bd7 {[%clk 0:01:52]} 18. a4 {[%clk 0:01:01]}  c6 {[%clk 0:01:18]} 19. axb5 {[%clk 0:00:53]}  cxb5 {[%clk 0:01:19]} 20. Bxh6 {[%clk 0:00:46]}  gxh6 {[%clk 0:01:17]} 21. Qxf6 {[%clk 0:00:46]}  Qxf6 {[%clk 0:01:16]} 22. Rxf6 {[%clk 0:00:47]}  Re6 {[%clk 0:01:17]} 23. Nh5 {[%clk 0:00:39]}  Kf8 {[%clk 0:01:15]} 24. Bxc4 {[%clk 0:00:27]}  bxc4 {[%clk 0:01:15]} 25. Rxe6 {[%clk 0:00:19]}  Bxe6 {[%clk 0:01:16]} 26. Nf4 {[%clk 0:00:19]}  a5 {[%clk 0:01:11]} 27. Kf2 {[%clk 0:00:14]}  a4 {[%clk 0:01:07]} 28. Ke3 {[%clk 0:00:14]}  Bd7 {[%clk 0:01:05]} 29. Nd5 {[%clk 0:00:13]}  Rb8 {[%clk 0:01:05]} 30. Nf6 {[%clk 0:00:11]}  Bc6 {[%clk 0:01:05]} 31. d5 {[%clk 0:00:11]}  Bb5 {[%clk 0:01:05]} 32. Rb1 {[%clk 0:00:11]}  Ke7 {[%clk 0:01:01]} 33. Nh5 {[%clk 0:00:06]}  a3 {[%clk 0:01:01]} 34. Ra1 {[%clk 0:00:06]}  Ra8 {[%clk 0:01:00]} 35. Ng3 {[%clk 0:00:07]}  Bd7 {[%clk 0:00:57]} 36. Kd4 {[%clk 0:00:06]}  Rg8 {[%clk 0:00:55]} 37. Nf5+ {[%clk 0:00:05]}  Bxf5 {[%clk 0:00:55]} 38. exf5 {[%clk 0:00:06]}  Ra8 {[%clk 0:00:48]} 39. Kxc4 {[%clk 0:00:04]}  Kf6 {[%clk 0:00:49]} 40. g4 {[%clk 0:00:04]}  Ke5 {[%clk 0:00:49]} 41. Kb3 {[%clk 0:00:05]}  Rb8+ {[%clk 0:00:48]} 42. Kxa3 {[%clk 0:00:04]}  Kxd5 {[%clk 0:00:49]} 43. Rd1+ {[%clk 0:00:04]}  Kc5 {[%clk 0:00:49]} 44. Rd4 {[%clk 0:00:04]}  d5 {[%clk 0:00:50]} 45. Rb4 {[%clk 0:00:01]}  Re8 {[%clk 0:00:50]} 46. Kb3 {[%clk 0:00:01]}  Re3 {[%clk 0:00:50]} 47. Rb7 {[%clk 0:00:02]}  d4 {[%clk 0:00:49]} 48. Rc7+ {[%clk 0:00:02]}  Kd6 {[%clk 0:00:50]} 49. Rxf7 {[%clk 0:00:02]}  Rxc3+ {[%clk 0:00:51]} 50. Kb2 {[%clk 0:00:01]}  Ke5 {[%clk 0:00:51]} 51. Rh7 {[%clk 0:00:01]}  Rxh3 {[%clk 0:00:52]} 52. Re7+ {[%clk 0:00:02]}  Kd5 {[%clk 0:00:52]} 53. Re6 {[%clk 0:00:03]}  Kc4 {[%clk 0:00:50]} 54. Rc6+ {[%clk 0:00:03]}  Kd5 {[%clk 0:00:51]} 55. Rg6 {[%clk 0:00:03]}  Kc4 {[%clk 0:00:45]} 56. Rc6+ {[%clk 0:00:02]}  Kd3 {[%clk 0:00:45]} 57. Rg6 {[%clk 0:00:01]}  Ke3 {[%clk 0:00:35]} 58. f6 {[%clk 0:00:02]}  d3 {[%clk 0:00:34]} 59. f7 {[%clk 0:00:02]}  Rf3 {[%clk 0:00:35]} 60. Re6+ {[%clk 0:00:03]}  Kd2 {[%clk 0:00:34]} 61. Re7 {[%clk 0:00:03]}  Rf6 {[%clk 0:00:34]} 62. Kb3 {[%clk 0:00:02]}  Kc1 {[%clk 0:00:33]} 63. Rc7+ {[%clk 0:00:01]}  Kd1 {[%clk 0:00:33]} 64. Rd7 {[%clk 0:00:01]}  d2 {[%clk 0:00:29]} 65. Kc3 {[%clk 0:00:02]}  Rf3+ {[%clk 0:00:29]} 66. Kb2 {[%clk 0:00:02]}  Ke2 {[%clk 0:00:26]} 67. Re7+ {[%clk 0:00:02]}  Kd1 {[%clk 0:00:25]} 68. Rd7 {[%clk 0:00:02]}  Rf2 {[%clk 0:00:24]} 69. Re7 {[%clk 0:00:03]}  Rf3 {[%clk 0:00:18]} 70. Rd7 {[%clk 0:00:03]} 1/2-1/2


[Site "https://www.chess.com"]